bitfinex/quotes_ETHUSD_20220113
["timestamp","ask_amount","ask_price","bid_price","bid_amount"]
[1642105667695,1.53492,3257.9,3257.6,0.00682108]
[1642105667895,2.30237,3257.9,3257.6,0.00682108]
[1642105668495,0.76746,3257.9,3257.6,0.00682108]
[1642105668701,0.1227,3258.4,3257.8,0.02647]
[1642105668997,0.1227,3258.4,3258.3,6.045463]
[1642105669197,0.1227,3258.4,3258.3,6.168163]
[1642105669395,0.1227,3258.4,3258.3,7.77100511]
[1642105669597,0.1227,3258.4,3258.3,0.93811511]
[1642105669798,0.1227,3258.4,3258.3,2.53811511]
[1642105670097,0.1227,3258.4,3258.3,6.58811511]
[1642105671943,0.1227,3258.4,3258.3,2.23811511]
[1642105672646,0.1227,3258.4,3258.3,3.82044588]
[1642105672845,0.1227,3258.4,3258.3,2.47498288]
[1642105673044,0.1227,3258.4,3258.3,2.51118688]
[1642105673447,0.0727,3258.4,3258.3,2.51118688]
[1642105673647,0.0727,3258.4,3258.3,0.92885611]
[1642105674101,0.76721,3258.6,3258.3,0.76995211]
[1642105674301,0.76721,3258.6,3258.3,0.81234011]
[1642105674500,0.76721,3258.6,3258.4,0.00227369]
[1642105675102,0.76834685,3259.0,3258.4,0.00227369]
[1642105675302,0.1227,3258.9,3258.4,0.76944369]
[1642105675702,0.1227,3258.9,3258.5,0.00170527]
[1642105675902,0.1227,3258.9,3258.5,0.02520027]
[1642105676304,0.1227,3258.9,3258.6,0.00113684]
[1642105676606,0.00113685,3259.0,3258.6,0.00113684]
[1642105676607,0.00113685,3259.0,3258.6,0.76825684]
[1642105676803,0.00113685,3259.0,3258.7,0.023575]
[1642105677203,0.00113685,3259.0,3258.9,0.036028]
[1642105677404,0.00113685,3259.0,3258.7,0.023575]
[1642105677604,0.00113685,3259.0,3258.7,0.790665]
[1642105678042,0.00113685,3259.0,3258.7,0.76709]
[1642105679745,0.00817411,3258.9,3258.7,0.76709]
[1642105679943,0.00113685,3259.0,3258.7,0.76709]
[1642105680544,0.76829685,3259.0,3258.6,0.00113684]
[1642105680945,0.76829685,3259.0,3258.4,0.00227369]
[1642105681143,1.53551405,3259.0,3258.4,0.00227369]
[1642105681344,1.53551405,3259.0,3258.4,0.12497369]
[1642105681598,1.53549685,3259.0,3258.4,0.12497369]
[1642105681798,0.76718,3258.9,3258.5,0.00170527]
[1642105682198,0.71718,3258.9,3258.5,0.00170527]
[1642105682398,0.4227,3258.8,3258.5,0.00170527]
[1642105682599,0.76735,3258.7,3258.5,0.00170527]
[1642105682800,5.3727,3258.6,3258.5,0.00170527]
[1642105683397,6.3727,3258.6,3258.5,0.00170527]
[1642105683598,6.6727,3258.6,3258.5,0.00170527]
[1642105683899,6.91404847,3258.6,3258.5,0.00170527]
[1642105684297,6.91404847,3258.6,3257.9,0.00511581]
[1642105684498,0.76737,3258.3,3257.9,0.00511581]
[1642105684701,1.06734,3258.2,3257.9,0.00511581]
[1642105685948,0.76734,3258.2,3258.0,2.06766583]
[1642105686146,0.54134847,3258.5,3258.0,2.06766583]
[1642105686348,0.54134847,3258.5,3258.4,0.038582]
[1642105686745,0.54134847,3258.5,3258.4,0.04085569]
[1642105687350,0.49134847,3258.5,3258.4,0.00227369]
[1642105688048,0.49134847,3258.5,3258.3,0.00284211]
[1642105688850,0.49134847,3258.5,3258.4,0.025685]
[1642105689296,0.49134847,3258.5,3258.4,0.02448869]
[1642105690299,0.76723,3258.6,3258.4,0.02448869]
[1642105690699,0.76723,3258.6,3258.5,0.00170527]
[1642105691102,0.76723,3258.6,3258.4,0.00227369]
[1642105692100,0.76723,3258.6,3258.4,0.02559369]
[1642105692300,0.76723,3258.6,3258.4,0.00227369]
[1642105692502,0.76723,3258.6,3258.5,0.00170527]
[1642105692699,0.76723,3258.6,3258.4,0.02409569]
[1642105692948,0.76723,3258.6,3258.5,0.00170527]
[1642105693847,0.76723,3258.6,3258.4,0.00227369]
[1642105694049,1.53442,3258.7,3258.4,0.02625569]
[1642105694448,1.53442,3258.7,3258.5,0.00170527]
[1642105694653,6.3727,3258.6,3258.5,0.00170527]
[1642105695055,6.3727,3258.6,3258.0,1.58233077]
[1642105695056,5.25,3258.5,3258.0,1.58233077]
[1642105695252,0.76751,3258.2,3258.0,1.58233077]
[1642105695455,0.1227,3258.1,3258.0,1.58233077]
[1642105695653,0.4227,3258.1,3258.0,1.58233077]
[1642105695851,0.4227,3258.1,3258.0,1.58517288]
[1642105696052,1.4227,3258.1,3258.0,1.58517288]
[1642105696254,0.4227,3258.1,3258.0,1.58517288]
[1642105696451,1.4227,3258.1,3258.0,1.58517288]
[1642105696698,0.4227,3258.1,3258.0,0.00284211]
[1642105696896,0.1227,3258.1,3258.0,0.00284211]
[1642105697096,0.7675,3258.0,3257.8,0.00397896]
[1642105697297,0.1227,3257.9,3257.8,0.00397896]
[1642105697699,2.8227,3257.9,3257.8,0.00397896]
[1642105698099,4.1227,3257.9,3257.5,0.00568423]
[1642105698299,4.1227,3257.9,3257.4,0.00625266]
[1642105698300,0.76761,3257.7,3257.4,0.00625266]
[1642105698498,1.65792,3257.6,3257.4,0.00625266]
[1642105698699,0.3,3257.5,3257.4,0.00625266]
[1642105698898,0.4227,3257.5,3257.4,0.00625266]
[1642105699699,0.4227,3257.5,3257.2,0.0073895]
[1642105699899,0.89025,3257.5,3257.3,0.023799]
[1642105700101,0.76755,3257.5,3257.4,0.026748]
[1642105700366,0.76755,3257.5,3257.4,0.00625266]
[1642105701149,0.76755,3257.5,3257.3,0.00682108]
[1642105701351,1.5351,3257.5,3257.2,0.0073895]
[1642105701753,1.06765,3257.4,3257.2,1.58972027]
[1642105701950,2.72581,3257.4,3257.2,1.58972027]
[1642105702149,3.72581,3257.4,3257.3,0.00682108]
[1642105702750,8.87581,3257.4,3257.3,0.00682108]
[1642105702954,8.87581,3257.4,3257.0,0.00852635]
[1642105702955,0.76773,3257.2,3257.0,0.00852635]
[1642105703251,3.370897,3257.2,3257.0,0.00852635]
[1642105703651,3.75,3257.1,3257.0,0.00852635]
[1642105703851,1.1228,3257.1,3257.0,0.00852635]
[1642105704497,0.1228,3257.1,3257.0,0.00852635]
[1642105704698,2.303167,3257.2,3256.7,0.01023162]
[1642105704898,0.76766,3256.9,3256.7,0.03435762]
[1642105705099,0.76766,3256.9,3256.8,0.032088]
[1642105705298,0.76766,3256.9,3256.8,0.0417512]
[1642105706499,0.76766,3256.9,3256.8,1.59199397]
[1642105707100,0.76766,3256.9,3256.8,1.63138497]
[1642105709246,0.76766,3256.9,3256.8,3.52126229]
[1642105709446,0.76766,3256.9,3256.8,3.49907529]
[1642105710047,0.76766,3256.9,3256.8,1.93873352]
[1642105711700,1.06766,3256.9,3256.8,1.91674452]
[1642105713002,1.06766,3256.9,3256.8,3.49927317]
[1642105713603,1.06766,3256.9,3256.8,1.59219185]
[1642105714304,1.835358,3256.9,3256.8,1.59219185]
[1642105714502,1.835358,3256.9,3256.8,1.91674452]
[1642105714903,0.76766,3256.9,3256.8,1.91674452]
[1642105715360,0.76766,3256.9,3256.8,0.0096632]
[1642105715750,0.76766,3256.9,3256.7,0.01023162]
[1642105716452,0.76766,3256.9,3256.8,3.48970022]
[1642105716853,0.76766,3256.9,3256.8,3.49936342]
[1642105717052,0.76766,3256.9,3256.8,0.0096632]
[1642105717853,0.76766,3256.9,3256.8,3.49936342]
[1642105718458,0.76766,3256.9,3256.8,1.5922821]
[1642105719096,0.76766,3256.9,3256.8,3.49936342]
[1642105719496,0.76766,3256.9,3256.8,3.52160742]
[1642105719697,0.76766,3256.9,3256.8,3.49936342]
[1642105720101,0.76766,3256.9,3256.8,0.0096632]
[1642105720301,0.76766,3256.9,3256.8,0.0316102]
[1642105720502,1.53512,3257.5,3256.8,0.1544102]
[1642105720700,1.53512,3257.5,3257.0,0.44841151]
[1642105720701,1.53505,3257.5,3257.0,0.44841151]
[1642105720900,1.53505,3257.5,3257.4,0.045463]
[1642105721301,1.53505,3257.5,3257.4,0.05171566]
[1642105721702,1.53505,3257.5,3257.4,0.17441566]
[1642105722003,0.76751,3257.6,3257.4,0.17441566]
[1642105722300,1.50752201,3258.2,3257.5,0.00568423]
[1642105722501,1.50752201,3258.2,3258.1,0.045463]
[1642105722502,3.04229201,3258.2,3258.1,0.045463]
[1642105722949,3.04218201,3258.2,3258.1,0.04773669]
[1642105723148,1.53466,3258.2,3258.1,0.04773669]
[1642105724148,1.53466,3258.2,3258.1,0.00227369]
[1642105724751,1.53466,3258.2,3258.0,0.021822]
[1642105724949,1.53466,3258.2,3257.7,0.00454739]
[1642105724950,0.76735,3258.0,3257.7,0.00454739]
[1642105725151,0.76735,3258.0,3257.7,1.58214748]
[1642105725351,0.76735,3258.0,3257.7,1.88214748]
[1642105725549,0.76735,3258.0,3257.8,0.00397896]
[1642105725750,0.3,3257.9,3257.8,0.00397896]
[1642105725950,0.76735,3258.0,3257.8,0.00397896]
[1642105726450,0.76735,3258.0,3257.9,0.023667]
[1642105726904,0.76735,3258.0,3257.9,0.00341054]
[1642105727105,0.76735,3258.0,3257.9,0.02745754]
[1642105727300,0.76735,3258.0,3257.9,0.00341054]
[1642105727702,5.24005,3258.0,3257.9,0.00341054]
[1642105727902,5.54005,3258.0,3257.9,0.00341054]
[1642105728502,6.91548013,3258.0,3257.9,0.00341054]
[1642105728906,0.3,3257.9,3257.5,0.00568423]
[1642105729103,2.4253773,3257.8,3257.5,0.00568423]
[1642105729304,2.4253773,3257.8,3257.7,0.024411]
[1642105729305,1.83511,3257.8,3257.7,0.024411]
[1642105729604,1.06755,3257.8,3257.7,0.00454739]
[1642105730003,1.06755,3257.8,3257.2,0.59673011]
[1642105730004,0.7675006,3257.7,3257.5,0.00568423]
[1642105730455,0.76749,3257.6,3257.3,0.00682108]
[1642105731052,0.76749,3257.6,3257.2,0.021822]
[1642105731251,1.37544013,3257.6,3257.2,1.60396948]
[1642105731459,0.76749,3257.4,3257.2,1.60396948]
[1642105731651,0.76749,3257.4,3257.2,1.20085075]
[1642105732255,0.89142685,3257.5,3257.2,1.79008804]
[1642105732552,0.89142685,3257.5,3257.2,1.20085075]
[1642105732553,0.3,3257.4,3257.2,1.20085075]
[1642105733156,0.3,3257.4,3257.1,2.37348081]
[1642105733354,1.06758,3257.4,3257.1,2.37348081]
[1642105733957,1.06758,3257.4,3257.1,2.36736377]
[1642105734198,2.60265,3257.4,3256.8,4.32529029]
[1642105734399,0.76758,3257.2,3256.8,4.32529029]
[1642105734599,0.76759,3257.1,3256.9,0.00227369]
[1642105734801,0.41368492,3256.9,3256.8,3.88052672]
[1642105735000,0.41368492,3256.9,3256.8,2.66736377]
[1642105735203,0.41368492,3256.9,3256.8,7.19016377]
[1642105735204,8.492e-05,3256.9,3256.8,7.19016377]
[1642105735402,8.492e-05,3256.9,3256.8,11.49016377]
[1642105735602,8.492e-05,3256.9,3256.8,7.95761377]
[1642105735803,8.492e-05,3256.9,3256.8,5.59025]
[1642105736002,8.492e-05,3256.9,3256.8,6.72255]
[1642105736201,0.00113685,3257.5,3257.0,0.45394755]
[1642105736404,0.76858685,3257.5,3256.8,1.4323]
[1642105736607,0.00284211,3257.4,3256.7,0.1228]
[1642105736803,0.76764,3257.0,3256.4,0.1228]
[1642105737003,0.3,3256.9,3256.4,4.07968885]
[1642105737203,0.3,3256.9,3256.6,0.00170527]
[1642105737703,0.76764,3257.0,3256.6,0.00170527]
[1642105738151,0.76768,3256.8,3256.6,0.00170527]
[1642105739154,2.30303,3256.8,3256.6,0.00170527]
[1642105739553,0.76768,3256.8,3256.6,0.00170527]
[1642105739751,1.53533,3256.8,3256.6,0.00170527]
[1642105740954,5.2911963,3256.8,3256.6,0.00170527]
[1642105741155,4.71779,3256.7,3256.6,0.00170527]
[1642105741356,4.84059,3256.7,3256.6,0.00170527]
[1642105741606,6.14059,3256.7,3256.6,0.00170527]
[1642105742402,6.14059,3256.7,3256.0,3.95688885]
[1642105742602,2.3038188,3256.4,3256.0,3.95688885]
[1642105742803,1.19074,3256.4,3256.1,2.37707893]
[1642105743103,1.4228,3256.4,3256.3,1.58282454]
[1642105743304,18.3028,3256.4,3256.3,1.58282454]
[1642105743602,1.4228,3256.4,3256.3,1.58452981]
[1642105743801,3.72668,3256.4,3256.3,1.58452981]
[1642105744607,3.72668,3256.4,3256.3,0.00170527]
[1642105745005,5.26263,3256.4,3255.9,0.00397897]
[1642105745205,5.26263,3256.4,3255.8,0.44164784]
[1642105745206,3.0,3256.1,3255.8,0.44164784]
[1642105745458,3.0,3256.1,3255.5,2.37423681]
[1642105745459,0.76812,3255.8,3255.5,2.37423681]
[1642105745658,1.33392,3255.8,3255.5,0.02754883]
[1642105745854,5.5,3255.7,3255.6,0.00170527]
[1642105746054,5.6228,3255.7,3255.6,0.00170527]
[1642105746254,5.6228,3255.7,3255.1,0.00454739]
[1642105746255,8.45915,3255.7,3255.1,0.00454739]
[1642105746554,0.76817,3255.4,3255.1,0.00454739]
[1642105746756,0.4228,3255.3,3255.1,0.00454739]
[1642105747257,0.7228,3255.3,3255.1,0.00454739]
[1642105747656,0.4228,3255.3,3255.1,0.00454739]
[1642105748057,0.4228,3255.3,3255.0,0.02734739]
[1642105748459,1.7333,3255.3,3255.0,0.02734739]
[1642105748758,2.7333,3255.3,3255.0,0.02734739]
[1642105749202,0.76817,3255.2,3255.0,0.02734739]
[1642105749403,0.1228,3255.1,3255.0,0.02734739]
[1642105750802,2.53637,3255.2,3255.0,0.02734739]
[1642105752000,2.53637,3255.2,3254.4,0.1228]
[1642105752204,0.76819,3255.0,3254.4,0.1228]
[1642105752401,1.06819,3255.0,3254.5,0.00341054]
[1642105752701,1.06819,3255.0,3254.7,0.43632395]
[1642105752951,0.3,3255.0,3254.7,0.43632395]
[1642105753149,0.3,3255.2,3254.8,0.00170527]
[1642105753549,0.4228,3255.3,3254.8,0.00170527]
[1642105753951,0.3,3255.3,3254.8,0.00170527]
[1642105754149,0.4228,3255.5,3254.8,0.00170527]
[1642105754551,0.76979528,3255.4,3254.8,0.00170527]
[1642105754853,0.41805031,3255.3,3254.8,0.00170527]
[1642105755455,1.18620031,3255.3,3254.8,1.5850711]
[1642105755750,1.18620031,3255.3,3254.9,0.00113684]
[1642105755952,0.76814,3255.2,3254.9,0.00113684]
[1642105756152,0.3,3255.1,3254.9,0.00113684]
[1642105756898,0.30352158,3255.1,3254.9,0.00113684]
[1642105757101,0.3,3255.1,3254.9,0.00113684]
[1642105758601,0.3,3255.1,3254.5,0.45529573]
[1642105758602,0.3,3255.1,3254.7,0.00227369]
[1642105759102,0.3,3255.1,3254.6,0.00284211]
[1642105759502,0.005796,3255.0,3254.6,0.00284211]
[1642105759902,0.005796,3255.0,3254.4,0.00397896]
[1642105760208,0.3,3255.1,3254.4,0.00397896]
[1642105760654,1.5,3254.6,3254.4,0.00397896]
[1642105761053,1.5,3254.6,3254.5,2.37501008]
[1642105762756,1.5,3254.6,3254.5,1.19820582]
[1642105763355,1.5,3254.6,3254.5,1.32110582]
[1642105763754,1.5,3254.6,3254.5,3.6961159]
[1642105764601,1.5,3254.6,3254.5,1.32110582]
[1642105765407,1.5,3254.6,3254.5,1.19820582]
[1642105765603,1.5,3254.6,3254.5,1.62110582]
[1642105766003,1.5,3254.6,3254.5,9.82110582]
[1642105766607,1.5,3254.6,3254.5,10.82110582]
[1642105767004,1.5,3254.6,3254.5,2.62110582]
[1642105767205,1.5,3254.6,3254.5,1.62110582]
[1642105767404,0.06891673,3254.6,3254.5,2.62110582]
[1642105768056,0.06891673,3254.6,3254.5,6.22110582]
[1642105769254,0.06891673,3254.6,3254.5,1.32110582]
[1642105769856,0.06891673,3254.6,3254.5,4.17110582]
[1642105770059,0.06891673,3254.6,3254.5,7.33751178]
[1642105770661,0.06891673,3254.6,3254.5,8.10548178]
[1642105770859,0.06891673,3254.6,3254.5,15.95548178]
[1642105771059,0.00113685,3255.3,3254.6,9.43305836]
[1642105771261,0.00113685,3255.3,3254.9,0.56868999]
[1642105771460,0.00113685,3255.3,3255.0,3.05184156]
[1642105771707,0.00113685,3255.3,3255.0,3.09096609]
[1642105771911,0.00113685,3255.3,3255.1,2.98103772]
[1642105772106,0.00113685,3255.3,3255.2,9.3228]
[1642105772606,0.00113685,3255.3,3255.2,10.3228]
[1642105773105,1.5,3256.0,3255.6,0.53823556]
[1642105773106,1.45113685,3256.0,3255.6,0.53823556]
[1642105773310,1.45113685,3256.0,3255.6,0.83823556]
[1642105773506,0.00341054,3255.9,3255.6,0.83823556]
[1642105773908,0.00284212,3255.8,3255.6,0.83823556]
[1642105774306,0.0022737,3255.7,3255.6,0.83823556]
[1642105774706,0.0022737,3255.7,3255.6,0.55014086]
[1642105774907,0.0022737,3255.7,3255.6,0.53823556]
[1642105776154,0.0022737,3255.7,3255.6,0.57159138]
[1642105776352,0.0022737,3255.7,3255.6,0.53823556]
[1642105776954,0.0022737,3255.7,3255.6,6.0212259]
[1642105777155,0.0022737,3255.7,3255.6,6.75239092]
[1642105777353,0.0022737,3255.7,3255.6,6.87519092]
[1642105777754,0.0022737,3255.7,3255.6,5.87519092]
[1642105777954,0.0022737,3255.7,3255.6,6.87519092]
[1642105778154,0.0022737,3255.7,3255.6,5.29220058]
[1642105778355,0.0022737,3255.7,3255.6,5.59220058]
[1642105780005,0.0022737,3255.7,3255.6,5.29220058]
[1642105780605,0.0022737,3255.7,3255.6,4.29220058]
[1642105780806,0.0022737,3255.7,3255.6,4.04319251]
[1642105781005,0.0022737,3255.7,3255.6,5.04319251]
[1642105781209,0.0022737,3255.7,3255.6,5.34319251]
[1642105781805,0.0022737,3255.7,3255.6,5.0937297]
[1642105782005,0.0022737,3255.7,3255.6,5.04319251]
[1642105782606,0.0022737,3255.7,3255.6,4.78940426]
[1642105782858,0.0022737,3255.7,3255.6,5.17791507]
[1642105783253,0.0022737,3255.7,3255.6,5.47791507]
[1642105783856,0.0022737,3255.7,3255.6,5.60071507]
[1642105785856,0.0022737,3255.7,3255.6,5.30071507]
[1642105786461,1.45113685,3256.0,3255.7,4.5065425]
[1642105786703,1.45113685,3256.0,3255.8,3.3028749]
[1642105786902,0.00113684,3255.9,3255.8,3.3028749]
[1642105787103,0.00113684,3255.9,3255.8,3.6028749]
[1642105787403,0.00113684,3255.9,3255.8,3.3572801]
[1642105787605,0.00113684,3255.9,3255.8,2.5896501]
[1642105787804,0.00113684,3255.9,3255.8,2.3439804]
[1642105790207,0.00113684,3255.9,3255.8,3.60144559]
[1642105790466,0.00113684,3255.9,3255.8,3.36113921]
[1642105791068,3.51365087,3256.8,3256.6,0.59060222]
[1642105791267,3.51365087,3256.8,3256.3,1.5352801]
[1642105791268,0.76025788,3256.4,3256.3,1.5352801]
[1642105791467,6.2,3257.6,3256.5,9.4]
[1642105791667,2.24441676,3258.1,3257.1,0.01257041]
[1642105791865,2.24441676,3258.1,3257.2,0.68069834]
[1642105792064,2.24441676,3258.1,3257.8,0.61197866]
[1642105792265,1.49838225,3258.0,3257.8,0.91197866]
[1642105792465,0.00682108,3257.9,3257.8,0.91197866]
[1642105792664,1.49838225,3258.0,3257.9,6.25]
[1642105792864,1.49838225,3258.0,3257.9,0.1227]
[1642105793066,1.49838225,3258.0,3257.9,1.1227]
[1642105793463,1.49838225,3258.0,3257.9,1.5657]
[1642105793667,1.49838225,3258.0,3257.9,6.6157]
[1642105794502,2.24441676,3258.2,3257.9,6.6157]
[1642105794702,0.122774,3258.3,3258.0,1.79607838]
[1642105794904,0.00113685,3258.1,3258.0,1.76711]
[1642105795102,0.00113685,3258.1,3258.0,1.3]
[1642105795301,0.00113685,3258.1,3257.9,2.09992]
[1642105795302,0.00113685,3258.1,3257.9,0.1227]
[1642105795504,0.045463,3258.0,3257.8,1.67035323]
[1642105795802,0.00113685,3258.1,3257.8,1.67035323]
[1642105795803,0.12383685,3258.1,3257.8,1.67035323]
[1642105796004,0.00113685,3258.1,3257.8,1.67035323]
[1642105796202,0.00113685,3258.1,3258.0,8.82035323]
[1642105796403,0.00113685,3258.1,3258.0,9.35084387]
[1642105796602,0.00113685,3258.1,3258.0,12.16654387]
[1642105796803,5.41950281,3259.5,3258.6,0.76689]
[1642105797006,3.41950281,3259.5,3259.3,0.51151052]
[1642105797202,0.0073895,3259.4,3259.3,0.51151052]
[1642105797402,0.0073895,3259.4,3259.3,0.81151052]
[1642105797602,0.0073895,3259.4,3259.2,0.7668482]
[1642105797859,0.0073895,3259.4,3259.3,0.3]
[1642105798154,0.0073895,3259.4,3258.9,2.3005464]
[1642105798155,0.0073895,3259.4,3259.1,0.76691]
[1642105798353,0.0073895,3259.4,3259.2,0.7668377]
[1642105798554,2.6122737,3259.5,3259.2,0.7668377]
[1642105798555,0.00682108,3259.3,3259.2,0.7668377]
[1642105798754,0.00682108,3259.3,3259.2,1.0668377]
[1642105798954,0.00682108,3259.3,3259.2,1.53547119]
[1642105799156,0.00682108,3259.3,3259.2,2.53547119]
[1642105799659,0.00682108,3259.3,3259.2,3.6003577]
[1642105799955,0.00682108,3259.3,3259.2,1.3]
[1642105800155,0.00682108,3259.3,3259.1,1.06691]
[1642105800356,0.00682108,3259.3,3258.9,0.1227]
[1642105800555,0.022639,3259.2,3258.9,0.1227]
[1642105801058,0.00682108,3259.3,3258.9,0.1227]
[1642105801457,0.00682108,3259.3,3258.5,1.5339]
[1642105801705,0.02921808,3259.3,3258.5,1.5339]
[1642105801906,0.02921808,3259.3,3259.0,2.63635412]
[1642105802708,0.02921808,3259.3,3259.0,0.3]
[1642105802907,0.02921808,3259.3,3258.6,2.63635412]
[1642105803108,0.026984,3258.8,3258.6,2.63635412]
[1642105803508,3.0227,3258.7,3258.6,2.63635412]
[1642105803709,0.1227,3258.7,3258.6,2.63635412]
[1642105804511,0.1227,3258.7,3258.0,4.83514638]
[1642105804709,0.026984,3258.8,3258.0,4.83514638]
[1642105804911,0.026984,3258.8,3258.0,5.13514638]
[1642105805363,0.026984,3258.8,3258.0,4.51934446]
[1642105805752,0.026984,3258.8,3258.1,3.40348412]
[1642105806352,0.026984,3258.8,3258.3,0.59031313]
[1642105806552,0.00341054,3258.7,3258.3,0.59031313]
[1642105806951,0.00284212,3258.6,3258.3,0.59031313]
[1642105807153,0.00284212,3258.6,3258.3,1.35739313]
[1642105807352,0.00227369,3258.5,3258.4,6.15113723]
[1642105807556,0.00227369,3258.5,3258.4,6.45113723]
[1642105807755,0.00227369,3258.5,3258.4,6.57383723]
[1642105807954,0.00227369,3258.5,3258.4,7.64839343]
[1642105808152,2.6122737,3259.5,3259.0,0.76688]
[1642105808352,2.6122737,3259.5,3259.4,0.56143993]
[1642105808551,2.6122737,3259.5,3259.4,0.98413993]
[1642105808752,2.6122737,3259.5,3259.4,0.86143993]
[1642105808952,2.6122737,3259.5,3259.4,0.3]
[1642105809205,0.01462093,3259.4,3259.0,0.1227]
[1642105809405,0.01462093,3259.4,3259.2,0.69060716]
[1642105809604,0.00511581,3259.4,3259.2,1.38121432]
[1642105810405,0.00511581,3259.4,3259.2,1.68121432]
[1642105811408,0.00511581,3259.4,3259.3,0.1227]
[1642105811808,0.00511581,3259.4,3259.3,0.4227]
[1642105812009,0.05,3259.8,3259.4,9.4]
[1642105812207,0.1227,3260.2,3259.6,0.68147729]
[1642105812408,6.2,3261.5,3259.7,0.5657]
[1642105812608,6.2,3261.5,3260.9,0.49483426]
[1642105812876,3.9039,3261.7,3260.9,0.49483426]
[1642105813062,3.9039,3261.7,3260.9,0.79483426]
[1642105813263,3.9039,3261.7,3261.0,0.43940021]
[1642105813462,3.9039,3261.7,3261.0,8.11200021]
[1642105813765,0.1226,3262.3,3261.0,8.11200021]
[1642105813766,0.996424,3261.1,3261.0,10.30591767]
[1642105813963,0.996424,3261.1,3261.0,10.53931767]
[1642105814463,3.6771,3262.3,3262.2,0.59259082]
[1642105814664,3.6271,3262.3,3262.2,0.59259082]
[1642105814964,0.00625266,3262.2,3261.6,0.69060716]
[1642105815370,1.2721812,3261.9,3261.6,0.69060716]
[1642105815565,0.1226,3261.8,3261.6,0.69060716]
[1642105815763,0.00397897,3261.8,3261.6,0.69060716]
[1642105815963,4.90341054,3261.7,3261.6,0.69060716]
[1642105816264,0.00341054,3261.7,3261.6,0.69060716]
[1642105818020,1.55816476,3261.7,3261.6,0.69060716]
[1642105818418,0.00341054,3261.7,3261.6,0.69060716]
[1642105818818,0.02594554,3261.7,3261.6,0.69060716]
[1642105819019,0.00341054,3261.7,3261.6,0.69060716]
[1642105819220,0.03154154,3261.7,3261.6,0.69060716]
[1642105819419,1.34752641,3261.7,3261.6,0.69060716]
[1642105820020,1.34752641,3261.7,3261.6,1.38121432]
[1642105820220,0.00341054,3261.7,3261.6,1.38121432]
[1642105820457,0.02963354,3261.7,3261.6,1.38121432]
[1642105820661,0.02963354,3261.7,3261.6,1.68121432]
[1642105820855,0.00341054,3261.7,3261.6,2.13617458]
[1642105821557,0.00341054,3261.7,3261.6,1.68121432]
[1642105821754,0.00341054,3261.7,3261.6,1.38121432]
[1642105822155,0.00341054,3261.7,3261.6,4.31595659]
[1642105822554,0.00341054,3261.7,3261.6,4.8705363]
[1642105823956,0.00341054,3261.7,3261.6,4.01595659]
[1642105824206,0.02616354,3261.7,3261.6,4.01595659]
[1642105824604,0.00341054,3261.7,3261.6,4.01595659]
[1642105824804,0.00341054,3261.7,3261.6,4.31595659]
[1642105825406,0.00341054,3261.7,3261.6,4.01595659]
[1642105825606,0.00341054,3261.7,3261.6,4.31595659]
[1642105826007,0.00341054,3261.7,3261.6,5.43855659]
[1642105826607,0.00341054,3261.7,3261.6,4.43855659]
[1642105826808,0.00341054,3261.7,3261.6,4.31595659]
[1642105827207,0.00341054,3261.7,3261.6,5.31595659]
[1642105827608,0.00341054,3261.7,3261.6,5.43855659]
[1642105827860,0.00341054,3261.7,3261.6,4.43855659]
[1642105828052,0.00341054,3261.7,3261.6,4.31595659]
[1642105830155,0.00341054,3261.7,3261.6,5.31595659]
[1642105831457,0.00341054,3261.7,3261.6,4.01595659]
[1642105831717,0.03189954,3261.7,3261.6,4.01595659]
[1642105832715,0.03189954,3261.7,3261.6,4.31595659]
[1642105832716,0.00341054,3261.7,3261.6,4.31595659]
[1642105832917,0.00341054,3261.7,3261.6,6.12415659]
[1642105833116,0.00341054,3261.7,3261.6,6.24675659]
[1642105833315,0.00341054,3261.7,3261.6,6.28176059]
[1642105834126,0.00341054,3261.7,3261.6,6.24675659]
[1642105835970,0.00341054,3261.7,3261.6,6.28157693]
[1642105836174,0.00341054,3261.7,3261.6,19.30155793]
[1642105836370,0.00341054,3261.7,3261.6,9.95155793]
[1642105837170,0.00341054,3261.7,3261.6,8.25766738]
[1642105837771,0.00341054,3261.7,3261.6,9.84065772]
[1642105838171,0.00341054,3261.7,3261.6,13.64065772]
[1642105838370,0.00341054,3261.7,3261.6,8.27274693]
[1642105838776,0.00341054,3261.7,3261.6,6.68975659]
[1642105839105,0.00341054,3261.7,3261.6,10.58975659]
[1642105839708,0.00341054,3261.7,3261.6,10.6233139]
[1642105839907,0.00341054,3261.7,3261.6,10.58975659]
[1642105840507,0.00341054,3261.7,3261.6,10.62508552]
[1642105840706,0.00341054,3261.7,3261.6,10.62264715]
[1642105840907,0.00341054,3261.7,3261.6,10.58975659]
[1642105841107,0.00341054,3261.7,3261.6,10.62319304]
[1642105841316,0.00341054,3261.7,3261.6,10.58975659]
[1642105841508,0.00341054,3261.7,3261.6,6.72178855]
[1642105841708,0.00341054,3261.7,3261.6,6.68975659]
[1642105841911,0.00341054,3261.7,3261.6,4.13855659]
[1642105842108,0.04887354,3261.7,3261.6,4.13855659]
[1642105842306,0.04887354,3261.7,3261.6,4.01595659]
[1642105843262,0.00341054,3261.7,3261.6,4.31595659]
[1642105843562,0.00341054,3261.7,3261.6,5.31595659]
[1642105843761,0.00341054,3261.7,3261.6,4.31595659]
[1642105844763,0.00341054,3261.7,3261.6,4.01595659]
[1642105845865,1.55113238,3261.7,3261.6,4.01595659]
[1642105846065,3.22601054,3261.7,3261.6,4.01595659]
[1642105846263,3.2226,3261.7,3261.6,1.38121432]
[1642105848608,3.1,3261.7,3261.6,1.38121432]
[1642105851154,3.2226,3261.7,3261.6,1.38121432]
[1642105852855,3.2226,3261.7,3261.6,4.01589988]
[1642105853657,12.5726,3261.7,3261.0,0.0755191]
[1642105853958,12.5726,3261.7,3260.5,3.1660124]
[1642105853959,4.75,3260.9,3260.5,3.1660124]
[1642105854205,4.75,3260.9,3260.5,1.24e-05]
[1642105854206,0.045463,3260.6,3260.5,1.24e-05]
[1642105854410,0.045463,3260.6,3260.5,0.6741669]
[1642105854603,0.021822,3261.3,3260.5,0.6741669]
[1642105854803,1.33854212,3261.6,3260.6,0.1226]
[1642105854804,1.21594212,3261.6,3260.6,0.1226]
[1642105855004,0.0240957,3261.5,3260.6,0.12544211]
[1642105855205,0.1466957,3261.5,3260.6,0.12544211]
[1642105855403,0.027627,3261.3,3260.6,0.12544211]
[1642105855604,0.033727,3261.0,3260.6,0.12544211]
[1642105855804,0.00170527,3261.4,3260.6,0.12544211]
[1642105856005,0.00113685,3261.3,3260.6,0.12544211]